[Event "14th Karen Asrian Memorial 2024"]
[Site "Yerevan"]
[Date "2024.04.27"]
[Round "4.5"]
[White "Sanikidze, Tornike"]
[Black "Davtyan, Arsen"]
[Result "0-1"]
[ECO "C77"]
[WhiteElo "2453"]
[BlackElo "2421"]
[Annotator "TA"]
[PlyCount "120"]
[EventDate "2024.04.24"]
[EventType "swiss"]
[EventCountry "ARM"]
[SourceTitle "playchess.com"]
[Source "ChessBase"]
[SourceQuality "1"]
[TimeControl "40/5400+30:1800+30"]

{[%evp 47,120,-318,-230,-248,-222,-238,-244,-238,-221,-247,-231,-235,-238,-261,-260,-256,-250,-339,-200,-188,-197,-183,-185,-177,0,0,0,-292,-279,-716,-570,-1556,-420,-416,-410,-370,-319,-325,-320,-345,-271,-429,-245,-314,-302,-450,-437,-398,-250,-247,-224,-352,-328,-298,-274,-514,-505,-668,-904,-875,-831,-795,-699,-968,-897,-1626,-1572,-1660,-903,-1702,-1628,-5106,-5093,-2000,-1368]} 1. e4 {[%emt 0:00:55]} e5 {[%emt 0:01:34]} 2. Nf3 {[%emt 0:00:19]} Nc6 {[%emt 0:00:06]} 3. Bb5 {[%emt 0:00:58]} a6 {[%emt 0:00:16]} 4. Ba4 {[%emt 0:00:19]} Nf6 {[%emt 0:01:05]} 5. Bxc6 {[%emt 0:05:59]} dxc6 {[%emt 0:00:07]} 6. d3 {[%emt 0:00:08]} Bd6 {[%emt 0:07:35]} 7. O-O {[%emt 0:01:04]} Be6 {[%emt 0:04:16]} 8. Nc3 {[%emt 0:13:34]} Qe7 {[%emt 0:17:42]} 9. Ng5 {[%emt 0:07:09]} Bg4 {[%emt 0:04:28]} 10. f3 {[%emt 0:03:04]} Bh5 {[%emt 0:07:30]} 11. Nh3 {[%emt 0:00:39]} h6 {[%emt 0:05:13]} 12. Ne2 {[%emt 0:12:19]} g5 {[%emt 0:07:44]} 13. Nf2 {[%emt 0:03:37]} Bc5 {[%emt 0:09:14]} 14. Qe1 {[%emt 0:03:31]} Bg6 {[%emt 0:04:59]} 15. Ng3 {[%emt 0:05:11]} g4 {[%emt 0:08:59]} 16. f4 {[%emt 0:03:39]} h5 {[%emt 0:00:21]} 17. fxe5 {[%emt 0:00:46]} Qxe5 {[%emt 0:00:30]} 18. c3 {[%emt 0:00:01]} h4 {[%emt 0:01:12]} 19. Ne2 {[%emt 0:00:39]} g3 {[%emt 0:03:05]} 20. d4 {[%emt 0:00:02]} gxf2+ {[%emt 0:00:25]} 21. Qxf2 {[%emt 0:06:59]} Ng4 {[%emt 0:04:40]} 22. Bf4 {[%emt 0:01:30]} Qe6 {[%emt 0:02:46]} 23. Qe1 {[%emt 0:00:01]} Bb6 {[%emt 0:04:06]} 24. h3 {[%emt 0:02:12]} Nf6 {[%emt 0:01:42]} 25. Bg5 {[%emt 0:00:38]} Nxe4 {[%emt 0:00:51]} 26. Nf4 {[%emt 0:00:13]} Qd6 $1 {[%emt 0:00:01]} 27. Nxg6 {[%emt 0:03:25]} Qxg6 {[%emt 0:00:01]} 28. Rf6 {[%emt 0:00:06]} Qxg5 {[%emt 0:00:03]} 29. Qxe4+ {[%emt 0:00:04] [#]} Kd8 $1 {[%emt 0:00:17]} 30. Rf5 {[%emt 0:02:03]} Qg6 {[%emt 0:01:39]} 31. Re1 {[%emt 0:03:17]} Kc8 {[%emt 0:00:41]} 32. c4 {[%emt 0:00:01]} Rg8 {[%emt 0:01:35]} (32... Rd8 $142 33. c5 Ba5) 33. c5 $19 {[%emt 0:01:56]} Ba5 {[%emt 0:00:01]} 34. Re2 {[%emt 0:00:02]} b5 {[%emt 0:01:44]} 35. Qf3 {[%emt 0:02:40]} Kb7 $2 {[%emt 0:00:56]} (35... Rd8 $19 36. a3 Kb7 (36... Rxd4 $2 37. b4 $19)) 36. Rf6 $1 $11 {[%emt 0:00:46]} Qb1+ {[%emt 0:00:02]} 37. Kf2 $2 {[%emt 0:00:03][%mdl 8192]} (37. Kh2 $11 Kb8 (37... Qxa2 $2 38. Rxc6 Kb8 39. b4 $18) 38. Qxc6) 37... Rad8 $19 {[%emt 0:00:59]} (37... Qxa2 38. Qxc6+ Kb8 39. b4 $11) 38. a3 $2 {[%emt 0:03:45]} (38. Qxc6+ Kb8 39. Qe4 Qxe4 (39... Qxa2 40. b4 $17) 40. Rxe4) 38... Rd5 {[%emt 0:00:27]} 39. Rxf7 {[%emt 0:16:26]} Rdg5 {[%emt 0:00:12]} (39... Rg3 $142 40. b4 Rxf3+ 41. Rxf3 Rxd4) 40. g4 $19 {[%emt 0:00:00]} hxg3+ {[%emt 0:00:00]} 41. Kg2 {[%emt 0:00:00]} Qd1 {[%emt 0:09:04]} 42. b4 {[%emt 0:04:11]} Qxd4 {[%emt 0:00:15]} 43. bxa5 {[%emt 0:00:05]} Qxc5 {[%emt 0:05:09]} (43... Rxc5 44. Rxc7+ Kxc7 45. Qf7+ Qd7 46. Qxg8 $17) 44. h4 {[%emt 0:01:04]} (44. Ree7 $142 Kb8 45. Qe2) 44... R5g7 {[%emt 0:01:46]} (44... Rg4 $142 45. Ree7 Qc2+ (45... Rxh4 46. Rxc7+ Kb8 47. Rb7+ Ka8 48. Ra7+ Kb8 49. Rab7+ Ka8 50. Ra7+ Kb8 51. Rab7+ $11) 46. Re2 Qc4) 45. Rf5 $19 {[%emt 0:00:15]} Qd4 {[%emt 0:02:25]} 46. Rc2 {[%emt 0:27:17]} (46. Rf6 $142 Qd5 (46... Qxh4 47. Qxc6+ Ka7 48. Qxa6+ Kb8 49. Qxb5+ Kc8 50. Qa6+ Kd8 51. Qa8+ Kd7 52. Qd5+ Kc8 53. Qe6+ Rd7 54. Qa6+ Kb8 55. Rb2+) 47. Qxd5 cxd5 48. a4) 46... Rg6 $19 {[%emt 0:03:26]} ({Stronger than} 46... Qxh4 47. Qxc6+ Ka7 (47... Kb8 48. Rxb5+ axb5 49. Qxb5+ Ka7 50. Qc5+ Kb8 51. Qb5+ Kc8 52. Qa6+ Kd8 53. Qa8+ Kd7 54. Qc6+ Kc8 55. Qa6+ Kd8 56. Qa8+ Kd7 57. Qc6+ Kc8 58. Qa6+ $11) 48. Qc5+ Kb8 (48... Kb7 49. Qc6+ Ka7 50. Qc5+ Kb7 51. Qc6+ $11) 49. Rf8+ Rxf8 50. Qxf8+ Ka7 (50... Kb7 51. Qf3+ Ka7 52. Qe3+ Kb7 53. Qf3+ Ka7 54. Qe3+ Kb7 55. Qf3+ $11) 51. Qc5+ Kb7 52. Qc6+ Ka7 (52... Kb8 53. Qe8+ Kb7 54. Qc6+ Ka7 55. Qc5+ Kb8 56. Qf8+ Kb7 57. Qf3+ Ka7 58. Qe3+ Kb7 59. Qf3+ Ka7 60. Qe3+ Kb8 61. Qe8+ Kb7 62. Qc6+ $11) 53. Qc5+ Kb7 54. Qc6+ Ka7 (54... Kb8 55. Qe8+ Ka7 56. Qe3+ Kb7 57. Qf3+ Kb8 58. Qf8+ Ka7 59. Qc5+ $11) 55. Qc5+ $11) 47. Rf4 {[%emt 0:00:02]} Qd5 {[%emt 0:03:41]} 48. Qxd5 {[%emt 0:00:05]} cxd5 {[%emt 0:00:01]} 49. h5 {[%emt 0:00:01]} (49. Rc5 $142) 49... Rg4 $19 {[%emt 0:02:12]} 50. Rf7 {[%emt 0:00:31] [#]} Rc4 $1 {[%emt 0:00:02]} ({Not} 50... Rc8 51. Rc5 $17) 51. Rd2 $2 {[%emt 0:00:10]} (51. Re2 {was forced.} d4 52. Rd2) 51... Rh4 $19 {[%emt 0:00:32]} 52. Kf3 {[%emt 0:02:07]} g2 {[%emt 0:00:59]} 53. Rxg2 {[%emt 0:00:27]} Rxg2 {[%emt 0:00:05]} 54. Kxg2 {[%emt 0:00:03]} Rxh5 {[%emt 0:00:08]} 55. Kg3 {[%emt 0:00:30]} Re5 {[%emt 0:00:12]} 56. Kf4 {[%emt 0:00:14]} Re4+ {[%emt 0:00:07]} 57. Kf5 {[%emt 0:00:04]} Re3 {[%emt 0:00:07]} 58. Kf4 {[%emt 0:00:04]} Rxa3 {[%emt 0:00:05]} 59. Ke5 {[%emt 0:00:03]} Rxa5 {[%emt 0:00:07]} 60. Kxd5 {[%emt 0:00:04]} Ra1 {[%emt 0:00:07]} 0-1

[Event "14th Karen Asrian Memorial 2024"]
[Site "Yerevan"]
[Date "2024.04.27"]
[Round "4.6"]
[White "Korshunov, Sergey And."]
[Black "Pogosyan, Stefan"]
[Result "0-1"]
[ECO "B47"]
[WhiteElo "2286"]
[BlackElo "2387"]
[Annotator "TA"]
[PlyCount "96"]
[EventDate "2024.04.24"]
[EventType "swiss"]
[EventCountry "ARM"]
[SourceTitle "playchess.com"]
[Source "ChessBase"]
[SourceQuality "1"]
[TimeControl "40/5400+30:1800+30"]

{[%evp 24,96,44,56,49,48,48,56,48,56,54,16,39,17,16,0,-18,-12,0,-115,-113,-105,-106,-104,-108,-112,-109,-166,-167,-183,-178,-189,-167,-183,-184,-175,-179,-193,-174,-222,-196,-201,-221,-267,-248,-230,-199,-222,-221,-214,-214,-203,-173,-179,-167,-159,-87,-126,-126,-195,-251,-253,-240,-279,-268,-323,-314,-373,-362,-467,-466,-479,-454,-443,-472]} 1. e4 {[%emt 0:00:03]} c5 {[%emt 0:04:34]} 2. Nf3 {[%emt 0:00:09]} Nc6 {[%emt 0:00:18]} 3. Nc3 {[%emt 0:01:18]} e6 {[%emt 0:01:35]} 4. d4 {[%emt 0:00:36]} cxd4 {[%emt 0:00:07]} 5. Nxd4 {[%emt 0:00:04]} Qc7 {[%emt 0:00:11]} 6. g3 {[%emt 0:01:28]} a6 {[%emt 0:07:14]} 7. Bg2 {[%emt 0:00:26]} Nf6 {[%emt 0:00:08]} 8. O-O {[%emt 0:05:49]} Nxd4 {[%emt 0:00:24]} 9. Qxd4 {[%emt 0:00:05]} Bc5 {[%emt 0:00:04]} 10. Bf4 {[%emt 0:09:36]} d6 {[%emt 0:00:08]} 11. Qd2 {[%emt 0:01:12]} h6 {[%emt 0:00:15]} 12. Rad1 {[%emt 0:15:35]} e5 {[%emt 0:00:26]} 13. Be3 {[%emt 0:00:05]} Be6 {[%emt 0:04:47]} 14. Bxc5 {[%emt 0:06:01]} dxc5 {[%emt 0:00:06]} 15. Nd5 {[%emt 0:01:19]} Bxd5 {[%emt 0:00:27] White is slightly better.} 16. exd5 {[%emt 0:01:36] Hoping for d6.} Qd6 {[%emt 0:00:04]} 17. f4 {[%emt 0:01:39] Threatens to win with fxe5.} exf4 {[%emt 0:02:47]} 18. Rfe1+ {[%emt 0:07:25]} (18. Qxf4 {simplifies} O-O-O 19. a3 Qxf4 20. Rxf4 Kc7 21. b4) 18... Kd8 {[%emt 0:06:52]} 19. Qa5+ {[%emt 0:13:38]} (19. Qxf4 {simplifies} Qxf4 20. gxf4 Kd7 21. d6) 19... b6 {[%emt 0:16:07]} 20. Qa4 {[%emt 0:00:09]} Re8 {[%emt 0:00:20]} 21. Rf1 {[%emt 0:13:02]} (21. Qxf4 Qxf4 22. gxf4 Kd7 $17) (21. Rxe8+ $11 {keeps the balance.} Nxe8 22. Rf1) 21... fxg3 $17 {[%emt 0:09:51]} 22. Qc6 {[%emt 0:02:46]} Qxc6 {[%emt 0:00:29]} (22... gxh2+ 23. Kh1 Qxc6 24. dxc6+ Ke7 (24... Kc7 25. Rxf6 gxf6 26. Rd7+ Kc8 27. Rxf7 $16) 25. c7 $11) 23. dxc6+ {[%emt 0:00:03]} Kc8 $1 {[%emt 0:06:59]} 24. hxg3 {[%emt 0:01:15][%cal Of1f6] Strongly threatening Rxf6!} Ra7 $1 {[%emt 0:00:22]} (24... Kc7 $2 25. Rxf6 gxf6 26. Rd7+ Kc8 27. Rxf7 $18) 25. a4 {[%emt 0:00:22]} (25. Bh3+ $17 {is a better defense.} Kc7 26. Bg2) 25... Rae7 $1 $19 {[%emt 0:01:31]} 26. a5 {[%emt 0:00:08]} b5 {[%emt 0:00:42]} (26... bxa5 27. Ra1 $15) 27. Bf3 {[%emt 0:02:51]} Rd8 {[%emt 0:01:51]} 28. Rde1 {[%emt 0:03:47]} Rxe1 {[%emt 0:01:22]} 29. Rxe1 {[%emt 0:00:03][%mdl 4096] Endgame. KRB-KRN} Re8 {[%emt 0:00:07] Prevents Re7.} 30. Rd1 {[%emt 0:00:27]} Kc7 {[%emt 0:11:22]} 31. c3 {[%emt 0:00:30]} (31. g4 $142) 31... c4 {[%emt 0:01:31]} 32. Kf2 {[%emt 0:01:18]} h5 {[%emt 0:02:40]} 33. Rd2 {[%emt 0:01:21]} Re7 {[%emt 0:01:45]} 34. Rd4 {[%emt 0:01:27]} g6 {[%emt 0:01:34]} 35. Kf1 {[%emt 0:01:59]} Ne8 {[%emt 0:03:59]} 36. g4 {[%emt 0:00:18]} hxg4 {[%emt 0:00:56]} 37. Rxg4 {[%emt 0:00:02]} Nd6 {[%emt 0:02:29]} 38. Rh4 {[%emt 0:01:00]} Re8 {[%emt 0:01:36]} 39. Rh7 {[%emt 0:01:13]} Rf8 {[%emt 0:00:08]} (39... Re3 $142 40. Kf2 Rd3) 40. Kf2 {[%emt 0:00:00]} Nc8 {[%emt 0:00:00]} 41. Rh4 {[%emt 0:09:12]} (41. Bd5 $17) 41... Ne7 $1 {[%emt 0:07:45]} 42. Rf4 {[%emt 0:00:04] [#]} g5 $1 {[%emt 0:01:01]} (42... Nxc6 43. Bxc6 Kxc6 44. Rf6+ Kd5 45. Rxa6 $17) 43. Rg4 {[%emt 0:07:38] [#]} Rg8 {[%emt 0:01:03]} (43... Nxc6 44. Bxc6 Kxc6 45. Rxg5 $15) 44. Rd4 {[%emt 0:01:14]} Rd8 {[%emt 0:01:36] Inhibits Rd7+. ...Rxd4 would now be deadly.} 45. Rg4 {[%emt 0:00:17]} f6 {[%emt 0:00:10]} ({Not} 45... Nxc6 46. Bxc6 Kxc6 47. Rxg5 $19) 46. Re4 {[%emt 0:00:06]} Nxc6 {[%emt 0:00:07] Black is clearly winning.} 47. Re6 {[%emt 0:00:04]} Rd6 {[%emt 0:00:07]} ({Less strong is} 47... Nxa5 48. Rxa6 Rd2+ 49. Ke3 $17) 48. Re8 {[%emt 0:00:08]} Nxa5 {[%emt 0:00:39] Weighted Error Value: White=0.27 (precise) /Black=0.06 (flawless) .  Mistake:       	White=4     	Black=1      Inaccurate:     	White=3     	---        OK:         	White=10    	Black=20     Best:        	White=1     	Black=2      Strong:       	---       	Black=5} 0-1

[Event "14th Karen Asrian Memorial 2024"]
[Site "Yerevan"]
[Date "2024.04.27"]
[Round "4.7"]
[White "Hakobyan, Erik"]
[Black "Hovakimyan, Vache"]
[Result "1-0"]
[ECO "C84"]
[WhiteElo "2383"]
[BlackElo "2202"]
[Annotator "TA"]
[PlyCount "75"]
[EventDate "2024.04.24"]
[EventType "swiss"]
[EventCountry "ARM"]
[SourceTitle "playchess.com"]
[Source "ChessBase"]
[SourceQuality "1"]
[TimeControl "40/5400+30:1800+30"]

{[%evp 13,75,18,18,1,21,16,14,10,14,15,14,13,17,13,36,31,27,29,35,39,41,42,48,13,83,93,86,74,98,50,144,0,41,32,39,31,42,24,66,25,30,0,47,47,39,38,45,54,81,80,1391,797,1648,1697,1906,1314,2035,1950,1755,802,1879,1013,938,884]} 1. e4 {[%emt 0:00:10]} e5 {[%emt 0:00:25]} 2. Nf3 {[%emt 0:00:13]} Nc6 {[%emt 0:00:10]} 3. Bb5 {[%emt 0:00:06]} a6 {[%emt 0:00:13]} 4. Ba4 {[%emt 0:00:07]} Nf6 {[%emt 0:00:10]} 5. O-O {[%emt 0:00:08]} Be7 {[%emt 0:00:19]} 6. d3 {[%emt 0:00:16]} b5 {[%emt 0:00:21]} 7. Bb3 {[%emt 0:00:06]} d6 {[%emt 0:00:18]} 8. Bd2 {[%emt 0:00:19]} O-O {[%emt 0:01:36]} 9. h3 {[%emt 0:00:31]} a5 {[%emt 0:03:32]} 10. a4 {[%emt 0:00:19] The position is equal.} b4 {[%emt 0:00:10]} 11. Re1 {[%emt 0:00:04]} Be6 {[%emt 0:17:39]} 12. Bxe6 {[%emt 0:00:41]} fxe6 {[%emt 0:00:06]} 13. Be3 {[%emt 0:00:46]} Qe8 {[%emt 0:05:09]} 14. Nbd2 {[%emt 0:02:05]} Nh5 {[%emt 0:05:54]} 15. c3 {[%emt 0:07:56]} Rb8 {[%emt 0:04:03]} 16. d4 {[%emt 0:06:20]} bxc3 {[%emt 0:06:13]} 17. bxc3 {[%emt 0:00:06]} exd4 {[%emt 0:09:04]} 18. cxd4 {[%emt 0:02:02]} Nf4 {[%emt 0:04:05] [#]} (18... d5 $11) 19. Bxf4 $1 $16 {[%emt 0:05:55]} Rxf4 {[%emt 0:00:12]} 20. Rc1 {[%emt 0:00:03]} Bd8 {[%emt 0:08:43] [#]} 21. Nc4 {[%emt 0:05:12]} ({White should play} 21. Nb3 $1 $16) 21... Qg6 {[%emt 0:16:38]} ({Better is} 21... Ra8 $1 $14) 22. Ncd2 {[%emt 0:07:16]} (22. Nxd6 $1 $16 {Hoping for Nb5.} cxd6 23. Rxc6) 22... Nb4 {[%emt 0:03:00]} 23. Re3 {[%emt 0:01:20] Wards off Nd3} c6 {[%emt 0:02:09]} 24. Qe2 {[%emt 0:05:04]} Bc7 {[%emt 0:04:41][%cal Bd8c7,Bc7b6,Bb6c5,Bc5a3,Ba3e7][%mdl 32]} 25. Ne1 {[%emt 0:11:03]} Bb6 {[%emt 0:03:23]} 26. Rf3 {[%emt 0:06:23]} Rxf3 {[%emt 0:01:53]} 27. Ndxf3 {[%emt 0:01:42]} c5 {[%emt 0:01:30]} (27... h6 $11) 28. dxc5 $14 {[%emt 0:05:02]} Bxc5 {[%emt 0:00:24]} 29. e5 {[%emt 0:00:10][%cal Be4e5,Be5d6,Bd6d7][%mdl 32]} Nd5 {[%emt 0:02:25]} 30. Nd3 {[%emt 0:03:41]} Ba3 {[%emt 0:00:31]} 31. Rc6 {[%emt 0:01:52][%cal Bc1c6,Bc6c8,Bc8d8][%mdl 32]} Rb3 $2 {[%emt 0:00:32][%mdl 8192] [#] Black cannot hold the game after this.} (31... dxe5 $16 32. Nfxe5 (32. Ndxe5 Nf4 $14) 32... Qe8) 32. exd6 $1 {[%emt 0:02:53] Threatening mate with Rc8+. White is clearly winning.} h6 {[%emt 0:00:31]} (32... Qe8 33. Nde5) 33. d7 {[%emt 0:01:11]} Be7 {[%emt 0:00:19]} 34. Nfe5 {[%emt 0:00:42]} Qf6 {[%emt 0:00:39]} 35. Rc8+ {[%emt 0:00:21]} Kh7 {[%emt 0:00:30]} 36. Qe4+ {[%emt 0:00:06]} (36. Qc2 $142 Rxd3 37. Qxd3+ g6 38. Nxg6 Qxg6 39. Rh8+ (39. d8=Q Bxd8 40. Qxg6+ Kxg6 $18) 39... Kg7 40. Rg8+ (40. d8=Q Qxd3 41. Qg8+ Kf6 $18) 40... Kxg8 41. Qxg6+ Kf8 42. Qxh6+ (42. Qxe6 Nf6 $18) 42... Kf7 43. Qh7+ Kf6 44. Qh8+ (44. Qg8 Kf5 $18) 44... Kf7 45. Qe8+ (45. d8=B Ba3 $18) (45. d8=N+ Bxd8 46. Qxd8 Ne7 $18) (45. d8=R Bxd8 46. Qxd8 Ne7 $18) 45... Kf6 46. d8=Q (46. d8=B Bxd8 47. Qxd8+ Ke5 $18) (46. d8=N Kf5 $18) (46. d8=R Bxd8 47. Qxd8+ Kf7 $18) 46... Bxd8 47. Qxd8+ Kf7 48. Qxa5) 36... g6 {[%emt 0:00:06]} 37. d8=R {[%emt 0:00:13]} Bxd8 {[%emt 0:00:19] [#]} 38. Rxd8 $1 {[%emt 0:00:11][%mdl 512] Weighted Error Value: White=0.20 (precise) /Black=0.24 (precise) .  Loses game:     	---       	Black=1      Mistake:       	White=2     	Black=3      Inaccurate:     	White=4     	Black=4      OK:         	White=11    	Black=7      Strong:       	White=1     	---} 1-0

[Event "14th Karen Asrian Memorial 2024"]
[Site "Yerevan"]
[Date "2024.04.27"]
[Round "4.8"]
[White "Nigalidze, Gaioz"]
[Black "Kaganskiy, Gleb"]
[Result "1/2-1/2"]
[ECO "A17"]
[WhiteElo "2373"]
[BlackElo "2160"]
[Annotator "TA"]
[PlyCount "123"]
[EventDate "2024.04.24"]
[EventType "swiss"]
[EventCountry "ARM"]
[SourceTitle "playchess.com"]
[Source "ChessBase"]
[SourceQuality "1"]
[TimeControl "40/5400+30:1800+30"]

{[%evp 16,123,-14,-45,0,-38,-8,-6,0,-15,-9,-22,-14,-17,-13,-25,-14,-47,-50,-48,-47,-38,-39,-36,-33,-41,-33,-62,-39,-41,-36,-81,-49,-15,0,-25,0,-54,-57,-70,-75,-53,-43,-57,-43,-58,-102,-76,0,-71,-8,-8,-8,-8,-8,-8,10,0,0,0,0,0,0,0,0,0,0,0,0,0,0,0,0,0,0,0,0,0,0,0,9,9,9,9,9,9,9,9,9,0,0,0,0,0,0,0,0,0,0,0,0,0,0,0,0,0,0,0,8,0]} 1. d4 {[%emt 0:01:09]} d5 {[%emt 0:00:09]} 2. c4 {[%emt 0:00:05]} e6 {[%emt 0:00:04]} 3. cxd5 {[%emt 0:00:05]} exd5 {[%emt 0:00:05]} 4. Nc3 {[%emt 0:00:04]} c6 {[%emt 0:00:34]} 5. Nf3 {[%emt 0:00:07]} Bf5 {[%emt 0:00:36]} 6. g3 {[%emt 0:00:14]} Nf6 {[%emt 0:00:58]} 7. Bg2 {[%emt 0:00:06]} Bd6 {[%emt 0:01:28] 7...h6 is more advanced technology.} 8. O-O {[%emt 0:00:09]} O-O {[%emt 0:00:31]} 9. Bf4 {[%emt 0:00:10] A17: English Opening: 1...Nf6 with ...Bb4.} Re8 {[%emt 0:05:28]} 10. Rc1 $146 {[%emt 0:00:07]} ({Predecessor:} 10. Bxd6 Qxd6 11. Ne5 Nfd7 12. f4 Na6 13. g4 Be6 14. f5 Nxe5 15. dxe5 Qc5+ 16. Kh1 Bd7 {0-1 Krzyzanowski,M (2521)-Villegas,P (2364) Titled Tuesday intern op 7th July blitz 2020 (5)}) 10... Ne4 {[%emt 0:02:11]} 11. Bxd6 {[%emt 0:06:08]} Nxd6 {[%emt 0:02:27]} 12. Ne5 {[%emt 0:04:32]} Nd7 {[%emt 0:01:00]} 13. Nf3 {[%emt 0:06:06]} h6 {[%emt 0:04:01]} 14. e3 {[%emt 0:00:18]} Qf6 {[%emt 0:07:33]} 15. Nh4 {[%emt 0:01:33]} Be6 {[%emt 0:02:54]} 16. a4 {[%emt 0:01:48]} a5 {[%emt 0:01:00]} 17. Re1 {[%emt 0:02:04]} g5 {[%emt 0:05:57]} 18. Nf3 {[%emt 0:04:39]} Bg4 {[%emt 0:00:30]} 19. h3 {[%emt 0:00:30]} Bh5 {[%emt 0:00:29]} 20. g4 {[%emt 0:00:28]} Bg6 {[%emt 0:00:07]} 21. Nd2 {[%emt 0:00:06]} Qh8 {[%emt 0:07:51]} 22. Nf1 {[%emt 0:01:58]} h5 {[%emt 0:07:46]} 23. b3 {[%emt 0:11:11]} Nf6 {[%emt 0:01:22]} 24. f3 {[%emt 0:00:39]} Re7 {[%emt 0:07:09]} 25. Qd2 {[%emt 0:03:45]} Qh6 {[%emt 0:05:09]} 26. Qf2 {[%emt 0:03:12]} (26. Nd1 $11) 26... Rae8 $15 {[%emt 0:02:51]} 27. Ng3 {[%emt 0:12:49]} hxg4 {[%emt 0:08:09]} 28. hxg4 {[%emt 0:00:22]} Qh4 {[%emt 0:00:09]} (28... Kg7 {with more complications.} 29. Rcd1 Rh8 30. Bf1 Qh7) 29. Nf1 {[%emt 0:02:05]} Qh7 {[%emt 0:04:37]} 30. Nd1 {[%emt 0:09:47]} Nd7 {[%emt 0:03:48]} 31. Nc3 {[%emt 0:05:17]} Nf6 {[%emt 0:04:45]} (31... f5 $17 {White must now prevent ...fxg4.} 32. gxf5 Nxf5) 32. Ng3 {[%emt 0:04:39] [#]} (32. Nd1 $11 {keeps the balance.}) 32... Nde4 {[%emt 0:02:29]} (32... Kg7 $1 $17) 33. Ncxe4 $11 {[%emt 0:06:00]} (33. fxe4 $2 {too greedy.} Nxg4 $19) 33... dxe4 {[%emt 0:00:06]} 34. Rc5 {[%emt 0:00:23]} exf3 {[%emt 0:01:05]} 35. Bxf3 {[%emt 0:01:17]} Qh4 {[%emt 0:01:56]} 36. Nf5 {[%emt 0:00:52]} Bxf5 {[%emt 0:02:49]} 37. Qxh4 {[%emt 0:00:51]} gxh4 {[%emt 0:00:05]} 38. Rxf5 {[%emt 0:00:35]} Kg7 {[%emt 0:02:11]} 39. Rg5+ {[%emt 0:04:08]} Kf8 {[%emt 0:00:58]} 40. Kf2 {[%emt 0:00:00]} Ne4+ {[%emt 0:00:00]} 41. Bxe4 {[%emt 0:05:36]} Rxe4 {[%emt 0:00:59]} 42. Re2 {[%emt 0:01:49]} f6 {[%emt 0:00:56]} 43. Rxa5 {[%emt 0:09:06]} Rxg4 {[%emt 0:00:19]} 44. Rh5 {[%emt 0:00:29]} Kg7 {[%emt 0:08:14]} 45. Kf3 {[%emt 0:01:27]} Ree4 {[%emt 0:00:42]} 46. Rh2 {[%emt 0:20:41]} Kg6 {[%emt 0:00:56]} 47. Rh8 {[%emt 0:00:04]} Kf5 {[%emt 0:03:33]} 48. Rh3 {[%emt 0:01:00]} Rg1 {[%emt 0:13:17]} 49. Rh5+ {[%emt 0:03:25]} (49. R3xh4 {simplifies} Rxh4 50. Rxh4 Rb1 51. Rf4+) 49... Kg6 {[%emt 0:00:29]} 50. R5xh4 {[%emt 0:00:23]} Rxh4 {[%emt 0:00:13]} 51. Rxh4 {[%emt 0:00:04]} Rb1 {[%emt 0:00:17]} 52. d5 {[%emt 0:00:46]} Rxb3 {[%emt 0:01:38]} 53. dxc6 {[%emt 0:00:03]} bxc6 {[%emt 0:00:09]} 54. Rc4 {[%emt 0:00:04]} Ra3 {[%emt 0:01:21]} 55. Ke4 {[%emt 0:00:05]} Kf7 {[%emt 0:01:46]} 56. Kd4 {[%emt 0:00:06]} Ke7 {[%emt 0:00:19]} 57. Kc5 {[%emt 0:00:55]} Rxe3 {[%emt 0:00:32]} 58. Kxc6 {[%emt 0:00:32]} Ra3 {[%emt 0:01:00]} 59. Kb6 {[%emt 0:00:22]} Rb3+ {[%emt 0:00:47]} 60. Kc6 {[%emt 0:00:46]} Ra3 {[%emt 0:00:08]} 61. Kb6 {[%emt 0:00:06]} Rb3+ {[%emt 0:00:05]} 62. Kc6 {[%emt 0:00:03]} 1/2-1/2

[Event "14th Karen Asrian Memorial 2024"]
[Site "Yerevan"]
[Date "2024.04.28"]
[Round "5.1"]
[White "Petrosyan, Manuel"]
[Black "Pranesh M"]
[Result "1/2-1/2"]
[ECO "C54"]
[WhiteElo "2616"]
[BlackElo "2538"]
[Annotator "TA"]
[PlyCount "41"]
[EventDate "2024.04.24"]
[EventType "swiss"]
[EventCountry "ARM"]
[SourceTitle "playchess.com"]
[Source "ChessBase"]
[SourceQuality "1"]
[TimeControl "40/5400+30:1800+30"]

{[%evp 11,41,10,15,16,15,12,25,10,17,12,26,19,18,27,0,28,24,36,37,31,35,2,31,22,18,17,25,10,25,0,0,0]} 1. e4 {[%emt 0:07:32]} e5 {[%emt 0:00:06]} 2. Nf3 {[%emt 0:00:04]} Nc6 {[%emt 0:00:06]} 3. Bc4 {[%emt 0:00:05]} Nf6 {[%emt 0:00:07]} 4. d3 {[%emt 0:00:03]} Bc5 {[%emt 0:00:06]} 5. O-O {[%emt 0:00:05]} d6 {[%emt 0:00:09]} 6. c3 {[%emt 0:00:05]} a6 {[%emt 0:00:32]} 7. a4 {[%emt 0:00:38]} Ba7 {[%emt 0:00:52]} 8. Re1 {[%emt 0:01:49]} O-O {[%emt 0:01:27][%cal Ob7b5]} 9. h3 {[%emt 0:00:11] White has an edge.} h6 {[%emt 0:01:10]} 10. Nbd2 {[%emt 0:00:06][%cal Bb1d2,Bd2f1,Bf1g3][%mdl 32]} Ne7 {[%emt 0:00:08]} 11. Nf1 {[%emt 0:00:26]} Ng6 {[%emt 0:00:11]} 12. Ng3 {[%emt 0:01:56]} c6 {[%emt 0:00:27]} 13. Bb3 {[%emt 0:00:37]} Re8 {[%emt 0:00:56]} 14. d4 {[%emt 0:02:33]} Be6 {[%emt 0:01:27]} 15. Bxe6 {[%emt 0:10:10]} Rxe6 {[%emt 0:00:22]} 16. Be3 {[%emt 0:00:13]} Qc7 {[%emt 0:06:12]} 17. dxe5 {[%emt 0:19:13]} dxe5 {[%emt 0:01:38]} 18. Bxa7 {[%emt 0:00:09]} Rxa7 {[%emt 0:00:03]} 19. Qb3 {[%emt 0:03:25]} Ra8 {[%emt 0:05:23]} 20. Rad1 {[%emt 0:02:59]} Ree8 {[%emt 0:01:34]} 21. Nf5 {[%emt 0:08:31] Weighted Error Value: White=0.07 (flawless) /Black=0.05 (flawless) .  Inaccurate:     	White=1     	Black=1      OK:         	White=6     	Black=2} 1/2-1/2